Cogmind - Beta 13 @@@ ROGUE MODE // 2024.05.31 @ 20:18:14 Player: JTMusky Result: Destroyed by P-60 Hacker with Shock Rifle Performance ------------- Evolutions (3) 1500 Regions Visited (6) 1200 Robots Destroyed (12) 60 Value Destroyed (207) 207 Prototype IDs (3) 60 Alien Tech Used (0) 0 Bonus (360) 360 TOTAL SCORE: 3387 Bonus ------- Follower Combat Kills 60 Aligned with FarCom 300 Cogmind --------- Core Integrity 0/700 Matter 285/300 Energy 35/100 System Corruption 3% Temperature Cool (0) Movement Core (150) Ox2 Location -7/Factory Parts ------- > --- POWER (1) -------- (None) > --- PROPULSION (2) --- (None) > --- UTILITY (8) ------ Signal Interpreter > --- WEAPON (2) ------- Proton Missile Launcher > --- INVENTORY (5) ---- Gravmag System Remote Datajack Peak State ------------ > --- POWER ------------ Light Ion Engine > --- PROPULSION ------- Aerolev Unit Gravmag System > --- UTILITY ---------- Structural Scanner Visual Processing Unit Signal Interpreter ECM Suite Hacking Suite Hacking Suite Hacking Suite > --- WEAPON ----------- Mining Laser > --- INVENTORY -------- Shield Generator System Restoration Module Grenade Launcher Remote Datajack [Rating: 25] Favorites ----------- Power Ion Engine Engine Ion Engine Propulsion Compact Wheel Leg Improved Titanium Leg Wheel Compact Wheel Hover Unit Aerolev Unit Utility Signal Interpreter Device Thief Drone Bay Storage Small Storage Unit Processor Signal Interpreter Hackware Hacking Suite Protection Layered Light Armor Plating Weapon Small Laser Energy Gun Small Laser Ballistic Gun Assault Rifle Launcher Grenade Launcher Special Weapon Mining Laser Build | -11 -10 -10 -10 -9 -8 -7 ------- Run | Yrd Mat Min Exi Min Mat Fac Slots Evolved 6 | . . . . . 4 2 Power . | . . . . . . . Propulsion . | . . . . . . . Utility 6 | . . . . . 4 2 Weapon . | . . . . . . . Parts Attached 38 | 7 2 6 . . 13 10 Power 2 | 1 . . . . 1 . Engine 2 | 1 . . . . 1 . Core . | . . . . . . . Reactor . | . . . . . . . Propulsion 8 | 2 . . . . 1 5 Treads . | . . . . . . . Leg 3 | . . . . . . 3 Wheel 2 | 2 . . . . . . Hover 3 | . . . . . 1 2 Flight . | . . . . . . . Utility 15 | 2 1 2 . . 7 3 Device 7 | 1 1 1 . . 3 1 Storage 2 | 1 . . . . 1 . Processor 2 | . . 1 . . 1 . Hackware 3 | . . . . . 2 1 Protection 1 | . . . . . . 1 Artifact . | . . . . . . . Weapon 13 | 2 1 4 . . 4 2 Energy Gun 5 | 2 . 2 . . 1 . Energy Cannon . | . . . . . . . Ballistic Gun 1 | . . . . . 1 . Ballistic Cannon . | . . . . . . . Launcher 4 | . . 2 . . . 2 Special Weapon 3 | . 1 . . . 2 . Impact Weapon . | . . . . . . . Slashing Weapon . | . . . . . . . Piercing Weapon . | . . . . . . . Special Melee Weapon . | . . . . . . . Unidentified Prototypes 3 | . . 1 . . 2 . Parts Lost 12 | . . . . . 4 8 Power 1 | . . . . . 1 . Propulsion 6 | . . . . . 3 3 Utility 4 | . . . . . . 4 Weapon 1 | . . . . . . 1 Highest Loss Streak 3 | . . . . . 2 3 To Critical Strikes . | . . . . . . . Average Slot Usage (%) 89 | . 100 100 100 100 85 52 Engine 10 | . 14 14 14 14 8 3 Wheel 19 | . 28 28 28 28 11 . Device 15 | . 14 7 14 14 28 7 Storage 4 | . 14 7 . . 7 . Processor 11 | . . 12 14 14 11 11 Hackware 2 | . . . . . 1 17 Energy Gun 10 | . 19 12 14 14 8 . Launcher 6 | . . 9 14 14 1 1 Special Weapon 4 | . 8 5 . . 6 3 Naked Turns . | . . . . . . . Heaviest Build 21 | 14 14 15 13 13 21 7 Greatest Support 32 | 32 32 32 32 32 32 17 Greatest Overweight (x) 5 | . . . . . 5 2 Average Overweight (x) . | . . . . . . . Largest Inventory Capacity 8 | 8 8 8 5 5 8 5 Average Capacity 6 | 7 8 6 5 5 7 5 Most Carried 8 | 8 8 8 5 5 8 4 Average Carried 5 | 5 7 6 5 5 6 3 Final Capacity 8 | 8 8 5 5 5 5 5 Final Carried 8 | 8 8 5 5 5 3 2 Class Distribution -------------------- 63% | Mutant 17% | Infiltrator-Mutant 8% | Hacker-Scout 6% | Hacker-Mutant 3% | Infiltrator-Skirmisher Dominant Class ---------------- Mutant | -10/Materials Mutant | -10/Mines Mutant | -10/Exiles Mutant | -9/Mines Infiltrator-Mutant | -8/Materials Hacker-Scout | -7/Factory Resources | -11 -10 -10 -10 -9 -8 -7 ----------- Run | Yrd Mat Min Exi Min Mat Fac Matter Collected 661 | 119 . 138 . 30 14 360 Remotely . | . . . . . . . Salvage Created 262 | 126 . 20 . . 14 102 Parts 17 | 5 . 3 . . 2 7 Haulers Intercepted . | . . . . . . . Recyclers Shooed . | . . . . . . . Parts Field Recycled . | . . . . . . . Retrieved Matter . | . . . . . . . Parts Self-Destructed . | . . . . . . . Prevented . | . . . . . . . Kills | -11 -10 -10 -10 -9 -8 -7 ------- Run | Yrd Mat Min Exi Min Mat Fac Combat Hostiles Destroyed 7 | . . 3 . . 2 2 Guns 3 | . . 1 . . 2 . AOE 4 | . . 2 . . . 2 Classes Destroyed 5 | 2 . 1 . . 1 1 Tunneler 3 | 2 . . . . . 1 Recycler 1 | 1 . . . . . . Operator 1 | . . . . . 1 . Swarmer 5 | . . 3 . . 2 . Grunt 2 | . . . . . . 2 Best Kill Streak 3 | 3 . 2 . . 2 2 Combat Bots Only 2 | . . 2 . . 2 2 Max Kills in Single Turn 2 | 1 . 1 . . 1 2 Gunslinging . | . . . . . . . Exploded 2 | . . 1 . . . 2 Melee . | . . . . . . . Uniques/NPCs Destroyed . | . . . . . . . Combat | -11 -10 -10 -10 -9 -8 -7 -------- Run | Yrd Mat Min Exi Min Mat Fac Hostile Shots Fired 301 | . 1 19 . . 50 231 Missed 104 | . . 4 . . 10 90 Damage Taken 2117 | . 10 148 . . 371 1588 Core 865 | . . 22 . . 137 706 Absorbed by Shields . | . . . . . . . Core Remaining (%) 88 | 100 . . . 91 75 . Volleys Fired 65 | 12 6 13 . . 27 7 Largest 2 | 2 1 1 . . 2 1 Hottest 100 | 80 100 40 . . 100 100 Shots Fired 78 | 24 6 13 . . 28 7 Gun 48 | 24 5 7 . . 12 . Cannon . | . . . . . . . Launcher 12 | . . 6 . . . 6 Special 18 | . 1 . . . 16 1 Kinetic 11 | . . . . . 11 . Thermal 36 | 12 6 . . . 17 1 Explosive 9 | . . 6 . . . 3 Electromagnetic 22 | 12 . 7 . . . 3 Robot Hit Streak 7 | 7 7 1 . . 4 4 Robot Miss Streak 4 | 2 1 4 . . 2 . Penetration Max . | . . . . . . . Secondary Targets . | . . . . . . . Shots Hit Robots 35 | 17 4 1 . . 10 3 Core Hits 28 | 4 1 9 . . 3 11 Critical Kills . | . . . . . . . Critical Parts Destroyed . | . . . . . . . Critical Strikes . | . . . . . . . Melee Attacks . | . . . . . . . Impact . | . . . . . . . Slashing . | . . . . . . . Piercing . | . . . . . . . Sneak Attacks . | . . . . . . . Combat Hostiles . | . . . . . . . Follow-up Attacks . | . . . . . . . Damage Inflicted 1038 | 211 43 228 . . 170 386 Guns 364 | 211 43 12 . . 98 . Cannons . | . . . . . . . Explosions 601 | . . 216 . . . 385 Melee . | . . . . . . . Ramming 1 | . . . . . . 1 Kinetic 83 | . . . . . 83 . Thermal 251 | 121 43 . . . 87 . Explosive 567 | . . 216 . . . 351 Electromagnetic 136 | 90 . 12 . . . 34 Impact . | . . . . . . . Slashing . | . . . . . . . Piercing . | . . . . . . . Highest Corruption 3 | . . . . . . 3 Average Corruption 2 | . . . . . . 2 Corruption Purged . | . . . . . . . Corruption Blocked . | . . . . . . . Effects 1 | . . . . . . 1 Data Loss (minor) 1 | . . . . . . 1 Overload Shots . | . . . . . . . Overflow Damage 4 | . . . . . 4 . Projectiles 4 | . . . . . 4 . Explosions . | . . . . . . . Melee . | . . . . . . . Knockbacks . | . . . . . . . Impact . | . . . . . . . Kinetic . | . . . . . . . Secondary . | . . . . . . . Self-Inflicted Damage 53 | . . 16 . . . 37 Shots 4 | . . 1 . . . 3 Rammed 1 | . . . . . . 1 Targets Rammed 1 | . . . . . . 1 Kicked . | . . . . . . . Crushed . | . . . . . . . Highest Temperature 180 | 180 20 . . . 28 32 Average Temperature 58 | 83 12 . . . 9 17 Received Heat Transfer 633 | . 6 24 . . 72 531 Siege Activations . | . . . . . . . Robots Corrupted . | . . . . . . . Combat Hostiles . | . . . . . . . Parts Fried 1 | 1 . . . . . . Impact Corruptions . | . . . . . . . Robots Melted . | . . . . . . . Combat Hostiles . | . . . . . . . Parts Melted . | . . . . . . . Heat Transferred 562 | 275 100 . . . 187 . Parts Sabotaged . | . . . . . . . Parts Stolen . | . . . . . . . Parts Stripped . | . . . . . . . Power Chain Reactions . | . . . . . . . Alert | -11 -10 -10 -10 -9 -8 -7 ------- Run | Yrd Mat Min Exi Min Mat Fac Peak Influence 187 | 15 10 187 . . 63 148 Initial 9 | . 9 3 . . . 7 Average 27 | 4 9 46 . . 17 40 Maximum Alert Level . | . . . . . . . Low Security (%) 100 | 100 100 100 . 100 100 100 Level 1 . | . . . . . . . Level 2 . | . . . . . . . Level 3 . | . . . . . . . Level 4 . | . . . . . . . Level 5 . | . . . . . . . High Security . | . . . . . . . Max Security . | . . . . . . . Squads Dispatched 4 | . . . . . 2 2 Investigation 1 | . . . . . . 1 Extermination 1 | . . . . . . 1 Reinforcement 2 | . . . . . 2 . Assault . | . . . . . . . Garrison . | . . . . . . . Intercept . | . . . . . . . Searches Triggered . | . . . . . . . Construction Impeded . | . . . . . . . Haulers Reinforced . | . . . . . . . Active Scanning Responses . | . . . . . . . Cargo Convoy Interrupts . | . . . . . . . Stealth | -11 -10 -10 -10 -9 -8 -7 --------- Run | Yrd Mat Min Exi Min Mat Fac Distress Signals 3 | . 1 . . . 2 . Communications Jammed . | . . . . . . . Distress Signals . | . . . . . . . Times Spotted 35 | . 3 5 . . 18 9 Peak Tracking Total 7 | . 2 3 . . 6 7 Tactical Retreats 9 | . . . . . 7 2 Traps | -11 -10 -10 -10 -9 -8 -7 ------- Run | Yrd Mat Min Exi Min Mat Fac Traps Triggered 4 | . . . . . . 4 Indirectly . | . . . . . . . Trap Hack Attempts . | . . . . . . . Triggered . | . . . . . . . Disarmed . | . . . . . . . Reprogrammed . | . . . . . . . Reused . | . . . . . . . Traps Extracted . | . . . . . . . Installed . | . . . . . . . Triggered . | . . . . . . . Machines | -11 -10 -10 -10 -9 -8 -7 ---------- Run | Yrd Mat Min Exi Min Mat Fac Machines Disabled 2 | . . 1 . . . 1 Max in Single Turn 1 | . . 1 . . . 1 Machines Repaired . | . . . . . . . Machines Dismantled . | . . . . . . . Machines Sabotaged . | . . . . . . . Overloaded Fab Kills . | . . . . . . . Hacking | -11 -10 -10 -10 -9 -8 -7 --------- Run | Yrd Mat Min Exi Min Mat Fac Machines Accessed 6 | . . 1 1 . 2 2 Terminals 2 | . . . . . 2 . Fabricators . | . . . . . . . Repair Stations . | . . . . . . . Recycling Units 1 | . . . . . . 1 Scanalyzers 1 | . . . . . . 1 Garrison Access . | . . . . . . . Total Hacks 12 | . . 1 2 . 3 6 Successful 10 | . . 1 2 . 1 6 Failed 2 | . . . . . 2 . Catastrophic . | . . . . . . . Database Lockouts . | . . . . . . . Manual . | . . . . . . . Terminals 3 | . . . . . 3 . Fabricators . | . . . . . . . Repair Stations . | . . . . . . . Recycling Units 4 | . . . . . . 4 Scanalyzers 2 | . . . . . . 2 Garrison Access . | . . . . . . . Terminal Hacks 4 | . . 1 2 . 1 . Record 2 | . . . 2 . . . Open Door 1 | . . 1 . . . . Hauler Manifests 1 | . . . . . 1 . Fabricator Hacks . | . . . . . . . Repair Station Hacks . | . . . . . . . Recycling Unit Hacks 4 | . . . . . . 4 Recycle Component 2 | . . . . . . 2 Process 1 | . . . . . . 1 Report Inventory 1 | . . . . . . 1 Scanalyzer 2 | . . . . . . 2 Insert Component 1 | . . . . . . 1 Analyze 1 | . . . . . . 1 Garrison Access Hacks . | . . . . . . . Unauthorized Hacks . | . . . . . . . Terminals . | . . . . . . . Fabricators . | . . . . . . . Repair Stations . | . . . . . . . Recycling Units . | . . . . . . . Scanalyzers . | . . . . . . . Garrison Access . | . . . . . . . Data Cores Recovered . | . . . . . . . Used . | . . . . . . . Hacking Detections 3 | . . . . . 1 2 Full Trace Events 1 | . . . . . . 1 Feedback Events . | . . . . . . . Feedback Blocked . | . . . . . . . Robot Schematics Acquired . | . . . . . . . Robots Built . | . . . . . . . Authchips . | . . . . . . . Time . | . . . . . . . Total Robot Build Rating . | . . . . . . . Part Schematics Acquired 1 | . . . . . . 1 Parts Built . | . . . . . . . Authchips . | . . . . . . . Time . | . . . . . . . Total Part Build Rating . | . . . . . . . Parts Repaired . | . . . . . . . Time . | . . . . . . . Parts Recycled 2 | . . . . . . 2 Recycled Matter 22 | . . . . . . 22 Retrieved Matter . | . . . . . . . Retrieved Components . | . . . . . . . Parts Scanalyzed 1 | . . . . . . 1 Part Schematics Acquired 1 | . . . . . . 1 Parts Damaged . | . . . . . . . Bothacking | -11 -10 -10 -10 -9 -8 -7 ------------ Run | Yrd Mat Min Exi Min Mat Fac Used RIF Installer . | . . . . . . . Robots Hacked . | . . . . . . . Non-combat . | . . . . . . . Combat . | . . . . . . . Robot Hacks Applied . | . . . . . . . Relay Couplers Released . | . . . . . . . Fabnet Peak Effective % . | . . . . . . . Robots Rewired . | . . . . . . . Allies Hacked . | . . . . . . . Hacks Repelled . | . . . . . . . Allies | -11 -10 -10 -10 -9 -8 -7 -------- Run | Yrd Mat Min Exi Min Mat Fac Total Allies 3 | . . 3 . . . . Largest Group 3 | . . 3 3 3 3 . Highest-Rated Group 40 | . . 40 40 40 40 . Highest-Rated Ally 16 | . . 16 16 16 16 . Total Orders 13 | . . 3 4 . 6 . ROAM 3 | . . . . . 3 . EXPLORE 4 | . . . 1 . 3 . RETURN 6 | . . 3 3 . . . Ally Attacks 22 | . . 8 . . 14 . Total Damage 106 | . . 52 . . 54 . Kills 3 | . . 3 . . . . Allies Corrupted . | . . . . . . . Allies Melted . | . . . . . . . Intel | -11 -10 -10 -10 -9 -8 -7 ------- Run | Yrd Mat Min Exi Min Mat Fac Robot Analysis Total . | . . . . . . . Derelict Logs Recovered 5 | . . 3 . 2 . . Drone Launches 9 | . . 3 3 . 3 . Drone Recoveries 9 | . . 3 3 . 3 . Exploration | -11 -10 -10 -10 -9 -8 -7 ------------- Run | Yrd Mat Min Exi Min Mat Fac Turns Passed 3120 | 115 124 786 561 263 856 415 Spaces Moved 2646 | 65 86 673 472 257 468 625 Core 244 | 7 . . . . 1 236 Treads . | . . . . . . . Legs 19 | . . . . . . 19 Wheels 1972 | 58 86 673 472 257 426 . Hover 411 | . . . . . 41 370 Flight . | . . . . . . . Fastest Speed 50 | 50 100 100 100 100 50 50 Average Speed 90 | 94 100 100 100 100 102 58 Slowest Speed 300 | 100 100 100 100 100 300 150 Overloaded Moves . | . . . . . . . Propulsion Burnouts . | . . . . . . . Robots Hopped . | . . . . . . . Cave-ins Triggered . | . . . . . . . Exploration Rate (%) 48 | 4 19 95 92 68 43 17 Regions Visited 6 Branch Regions 3 Pre-discovered Areas 1 | . . 1 . . . . Known Exits Taken 4 | . . 1 1 1 1 . Unknown Exits Taken 2 | 1 1 . . . . . Scrap Searched 4 | . . 3 . 1 . . Spaces Dug 26 | . 1 13 . . 12 . Terrain Destroyed 66 | . 1 41 . . 12 12 Melee . | . . . . . . . Projectile 13 | . 1 . . . 12 . AOE 53 | . . 41 . . . 12 Terrain Rammed . | . . . . . . . Walls Destroyed . | . . . . . . . Machines Disabled . | . . . . . . . Actions | -11 -10 -10 -10 -9 -8 -7 --------- Run | Yrd Mat Min Exi Min Mat Fac Total 3251 | 91 116 773 561 263 782 665 Wait 466 | . 20 72 90 7 260 17 Move 2640 | 64 85 672 471 256 467 625 Hop . | . . . . . . . Pick Up 21 | 8 1 3 . . 5 4 Fast Attach 19 | 7 1 1 . . 4 6 Attach 10 | . . . . . 6 4 Detach 4 | . . . . . 3 1 Swap 10 | . 1 5 . . 4 . Drop 15 | . 2 7 . . 6 . Fire 65 | 12 6 13 . . 27 7 Melee . | . . . . . . . Ram 1 | . . . . . . 1 Kick . | . . . . . . . Crush . | . . . . . . . Escape Stasis . | . . . . . . . Rewire . | . . . . . . . Trap . | . . . . . . . Miscellaneous . | . . . . . . . Route ------- -11/Scrapyard -10/Materials -10/Mines (discovered 3 exits: *Mat x2 / *Exi) -10/Exiles (discovered 2 exits: *Min x2) -9/Mines -8/Materials -7/Factory History --------- Turn | Location | Event 2 | -11/Scrapyard | Met Revision 17 12 | -11/Scrapyard | Discovered new exit (range 15) 116 | -11/Scrapyard | Entered Materials 216 | -10/Materials | Discovered new exit (range 16) 240 | -10/Materials | Entered Mines 325 | -10/Mines | Build established: Mutant 359 | -10/Mines | Discovered new exit (range 10) 375 | -10/Mines | Identified exit to Materials 431 | -10/Mines | Assisted by bots powering up and referring to "LRC-V3" 610 | -10/Mines | Discovered exit to Materials (range 10) 623 | -10/Mines | Learned Materials stockpile data 631 | -10/Mines | Found the Drone Emporium 634 | -10/Mines | Identified exit to Exiles 639 | -10/Mines | Found Prototype Device 651 | -10/Mines | Identified Thief Drone Bay 729 | -10/Mines | A weapon hastily lodged in a ceiling crevice suddenly fell to the ground 1010 | -10/Mines | Deemed a non-threat by the Exiles lab entrance 1026 | -10/Mines | Entered Exiles 1026 | -10/Exiles | Accompanied by 3 allies 1032 | -10/Exiles | Discovered new exit (range 28) 1076 | -10/Exiles | Discovered new exit (range 131) 1136 | -10/Exiles | Identified exit to Mines 1156 | -10/Exiles | Met 8R-AWN 1180 | -10/Exiles | Met EX-HEX 1208 | -10/Exiles | Met EX-BIN 1225 | -10/Exiles | Aligned with FarCom system 1226 | -10/Exiles | Given EX-Vault access code 1320 | -10/Exiles | Met EX-DEC 1359 | -10/Exiles | Visited The Gauntlet 1587 | -10/Exiles | Entered Mines 1587 | -9/Mines | Accompanied by 3 allies 1777 | -9/Mines | Learned Materials terminal intel 1792 | -9/Mines | Discovered new exit (range 7) 1797 | -9/Mines | Identified exit to Materials 1830 | -9/Mines | Learned Materials trap positions 1850 | -9/Mines | Entered Materials 1850 | -8/Materials | Accompanied by 3 allies 1850 | -8/Materials | Evolved 4 slots: Utility x4 1851 | -8/Materials | Loaded intel: 21 trap records 1853 | -8/Materials | Loaded intel: 11 terminal locations 1868 | -8/Materials | Discovered new exit (range 72) 2064 | -8/Materials | Lost 3 allies 2269 | -8/Materials | Build established: Infiltrator-Mutant 2706 | -8/Materials | Identified exit to Factory 2706 | -8/Materials | Entered Factory 2706 | -7/Factory | Evolved 2 slots: Utility x2 3013 | -7/Factory | Core integrity fell below 50% 3051 | -7/Factory | Lost 3 parts (1n1u1w) 3070 | -7/Factory | Core integrity fell below 20% 3121 | -7/Factory | Destroyed by P-60 Hacker with Shock Rifle Last Messages --------------- 03011_ Critical hit (Burn: +37). 03014_ Grenade Launcher destroyed. 03017_ Acquired 12 matter. 03018_ Acquired 16 matter. 03018_ Lyr. Light Armor Plating destroyed. 03020_ Carbon-fiber Leg destroyed. 03024_ T-07 Excavator is excavating. 03043_ Critical hit (Burn: +37). 03046_ Acquired 115 matter. 03052_ Imp. Titanium Leg destroyed. 03077_ Acquired Proton Missile Launcher. 03081_ Door malfunctions. 03081_ Assembly Bed disabled. 03095_ T-07 Excavator destroyed. 03099_ System corrupted: Component data lost. 03104_ Assembly Bed disabled. 03109_ U-05 Engineer lays Concrete. 03112_ Hacking Suite destroyed. 03112_ U-05 Engineer lays Concrete. 03120_ Door malfunctions. Map ----- +----------------------------------------------------+ | ????????????????????? ???????????????????????? | | ????????????????????????????????????????????????? | | ?????????????????????????????????????????????????? | | ?????????????????????"" ?????????????????????????? | | ?????????????????????F""?????????????????????????? | | ????????????????????? ""?????????????????????????? | | ????????????????????? ?????????????????????????? | | ????????????????????? ?????????????????????????? | | ????????????????????? ?????????????????????????? | | ?????????????#########/#?????????????????????????? | | ?????????????# # #?????????????????????????? | | ?????????????# |% # #?????????????????????????? | | ?????????????# ! # #????????????????#####????? | | ?????????????# # ########????????? ????? | | ?????????????# " #g #?????????? #???? | | ?????????????# / #?????????? #???? | | ?????????????# # #??????????# #???? | | ?????????????# "" ###### ############ #???? | | ?????????????# """" #????# ## """ ## +???? | | ?????????????# #????# ## "T" ## #???? | | ?????????????# " "" #????# ## " " ## ##??? | | ?????????????# """" #????# ## # #??? | | ?????????????# """" #????# ## # #??? | | ?????????????# """" #????# ## ][ / # #### | | ?????????????# """ ###### ## ]! # | | ?????????????# """" p @ #?? ] # #### | | ?????????????# ###### #???? ### ###??? | | ?????????????#########????# #??####+##### ###### | | ?????????????????????????## ##?# / | | ?????????????????????????# #?# #####+##### | | ?????????????????????????# ### #?#% #?? | | ?????????????????????????# #?# #?? | | ?????????????????????????# ###+##+#?# #?? | | ?????????????????????????# # #?# #?? | | ?????????????????????????#######[ #?# !#?? | | ???????????????????????????????# #?# #?? | | ???????????????????????????????# #?########?? | | ???????????????????????????????# ! !#??????????? | | ???????????????????????????????# #??????????? | | ???????????????????????????????########??????????? | | | | | | | | | | | | | | | | | | | | | +----------------------------------------------------+ Best States ------------- Heat Dissipation 34 Energy Generation 10 Energy Capacity 250 Matter Stores 300 Matter Capacity 300 Sight Range 18 Terrain Scan Range 16 Terrain Scan Density 10 ECM Strength 1 Armor Coverage 150 Evasion (%) 55 Offensive Hacking 30 Item Schematics ----------------- Aerolev Unit | -7/Factory | Scanalyzed Robot Schematics ------------------ None Fabricated ------------ Nothing Alien Tech Used ----------------- None Achievements -------------- None Challenges ------------ None Game ------ Seed ThermicRemoteArmor Manual? 0 Play Time 01:02:56 Cumulative 29.2 hours Start 2024.05.29 @ 16:56:26 End 2024.05.31 @ 20:18:14 Sessions 5 Manual Loads 0 Difficulty Rogue Special Mode None Game No. 40 Rogue 40 Adventurer 0 Explorer 0 Win Type - Total 0 Types 0/0/0/0/0/0/0/0/0 Lore% 18 Gallery% 16 Achievement% 16 Wizard Run 0 Options --------- Layout 2 ASCII 1 Keyboard 1 Movement Vi Keybinds 0 Fullscreen 2 Font 32/Cog Map View 50x44 Zoom Use 0% Tactical HUD 1 Map Filters NONE Filters NONE Steam 0 RUN: 5cd4ddc8-4f63-4cc0-8d69-e58a2328ea3d